[Event "*** SCC Grand Prix: Titled Tuesday Blitz"]
[Site "Chess.com"]
[Date "2020.07.14"]
[Round "4"]
[White "profofchess"]
[Black "Witik"]
[Result "0-1"]
[WhiteElo "2475"]
[BlackElo "2675"]
[TimeControl "180+1"]
[EndTime "10:39:35 PDT"]
[Termination "Witik won on time"]

1. e4 {[%clk 0:03:00.9]} 1... c6 {[%clk 0:02:59.4]} 2. d4 {[%clk 0:02:59.6]}
2... d5 {[%clk 0:02:59.6]} 3. f3 {[%clk 0:02:59.9]} 3... e6 {[%clk 0:02:54]} 4.
Nc3 {[%clk 0:02:59.3]} 4... Bb4 {[%clk 0:02:53.1]} 5. Bd2 {[%clk 0:02:57.9]}
5... Nf6 {[%clk 0:02:44.9]} 6. e5 {[%clk 0:02:52]} 6... Nfd7 {[%clk 0:02:44.9]}
7. Nce2 {[%clk 0:02:52.6]} 7... Be7 {[%clk 0:02:44.5]} 8. f4 {[%clk 0:02:38.5]}
8... c5 {[%clk 0:02:44.6]} 9. c3 {[%clk 0:02:38.9]} 9... Nc6 {[%clk 0:02:41.4]}
10. Nf3 {[%clk 0:02:38.7]} 10... b5 {[%clk 0:02:40]} 11. g3 {[%clk 0:02:35.8]}
11... Qb6 {[%clk 0:02:37.1]} 12. h4 {[%clk 0:02:25.8]} 12... a5 {[%clk
0:02:35.3]} 13. Bh3 {[%clk 0:02:25.5]} 13... b4 {[%clk 0:02:33.1]} 14. O-O
{[%clk 0:02:17.9]} 14... Ba6 {[%clk 0:02:31.7]} 15. Be3 {[%clk 0:02:16.1]} 15...
O-O {[%clk 0:02:22.9]} 16. Rf2 {[%clk 0:02:11.8]} 16... a4 {[%clk 0:02:13.2]}
17. a3 {[%clk 0:02:03.1]} 17... bxa3 {[%clk 0:02:11.3]} 18. bxa3 {[%clk
0:02:04]} 18... Bc4 {[%clk 0:02:09.1]} 19. f5 {[%clk 0:02:01]} 19... cxd4 {[%clk
0:02:06.4]} 20. Nexd4 {[%clk 0:01:46.3]} 20... Ndxe5 {[%clk 0:01:53.5]} 21. fxe6
{[%clk 0:01:39.7]} 21... Nd3 {[%clk 0:01:38]} 22. exf7+ {[%clk 0:01:13.5]} 22...
Kh8 {[%clk 0:01:20.3]} 23. Rd2 {[%clk 0:01:04]} 23... Nce5 {[%clk 0:01:02.2]}
24. Nxe5 {[%clk 0:00:40.4]} 24... Nxe5 {[%clk 0:01:02]} 25. Rb1 {[%clk
0:00:24.5]} 25... Qg6 {[%clk 0:00:58.3]} 26. Nf5 {[%clk 0:00:17.7]} 26... Rxf7
{[%clk 0:00:56.9]} 27. h5 {[%clk 0:00:17.7]} 27... Qe6 {[%clk 0:00:44.4]} 28. g4
{[%clk 0:00:15.8]} 28... Raf8 {[%clk 0:00:29.5]} 29. Nd4 {[%clk 0:00:12.9]}
29... Nf3+ {[%clk 0:00:26.7]} 30. Qxf3 {[%clk 0:00:09.6]} 30... Rxf3 {[%clk
0:00:26.7]} 31. Nxe6 {[%clk 0:00:09.5]} 31... Rxe3 {[%clk 0:00:26.7]} 32. Nxf8
{[%clk 0:00:09.4]} 32... Rxh3 {[%clk 0:00:26.7]} 33. Ne6 {[%clk 0:00:07.9]}
33... h6 {[%clk 0:00:26.8]} 34. Nf4 {[%clk 0:00:05]} 34... Rg3+ {[%clk
0:00:09.6]} 35. Kh2 {[%clk 0:00:03.9]} 35... Rxg4 {[%clk 0:00:10.2]} 36. Rb8+
{[%clk 0:00:03.2]} 36... Kh7 {[%clk 0:00:10.1]} 37. Rb7 {[%clk 0:00:02.8]} 37...
Bd6 {[%clk 0:00:10]} 0-1

[Event "*** SCC Grand Prix: Titled Tuesday Blitz"]
[Site "Chess.com"]
[Date "2020.07.14"]
[Round "4"]
[White "AlanZhang"]
[Black "YPradafah"]
[Result "0-1"]
[WhiteElo "2229"]
[BlackElo "2567"]
[TimeControl "180+1"]
[EndTime "10:39:35 PDT"]
[Termination "YPradafah won on time"]

1. e4 {[%clk 0:03:00.9]} 1... c5 {[%clk 0:02:57.7]} 2. Nf3 {[%clk 0:03:00.6]}
2... Nc6 {[%clk 0:02:57.6]} 3. d4 {[%clk 0:03:00.8]} 3... cxd4 {[%clk
0:02:57.8]} 4. Nxd4 {[%clk 0:03:01.7]} 4... Nf6 {[%clk 0:02:58.3]} 5. Nc3 {[%clk
0:03:00.7]} 5... e5 {[%clk 0:02:57]} 6. Ndb5 {[%clk 0:03:00.6]} 6... d6 {[%clk
0:02:56.4]} 7. Bg5 {[%clk 0:03:00.4]} 7... a6 {[%clk 0:02:55]} 8. Na3 {[%clk
0:02:49.1]} 8... b5 {[%clk 0:02:54.7]} 9. Nd5 {[%clk 0:02:49.5]} 9... Be7 {[%clk
0:02:54.5]} 10. Bxf6 {[%clk 0:02:50]} 10... Bxf6 {[%clk 0:02:55.1]} 11. c4
{[%clk 0:02:50.4]} 11... b4 {[%clk 0:02:55.4]} 12. Nc2 {[%clk 0:02:50.4]} 12...
a5 {[%clk 0:02:54.2]} 13. h4 {[%clk 0:02:49.2]} 13... O-O {[%clk 0:02:49.6]} 14.
g3 {[%clk 0:02:46.3]} 14... Be6 {[%clk 0:02:47.8]} 15. Bh3 {[%clk 0:02:38.1]}
15... Rb8 {[%clk 0:02:47.6]} 16. Kf1 {[%clk 0:02:36.5]} 16... Qd7 {[%clk
0:02:45.7]} 17. Kg2 {[%clk 0:02:29.5]} 17... Bd8 {[%clk 0:02:39.2]} 18. b3
{[%clk 0:02:27.5]} 18... Bxh3+ {[%clk 0:02:08.1]} 19. Rxh3 {[%clk 0:02:25.3]}
19... f5 {[%clk 0:02:08.2]} 20. exf5 {[%clk 0:02:21.8]} 20... Qxf5 {[%clk
0:02:06.6]} 21. Qe2 {[%clk 0:02:17.3]} 21... Bb6 {[%clk 0:01:37.6]} 22. Rf1
{[%clk 0:01:56.2]} 22... Bc5 {[%clk 0:01:13.6]} 23. g4 {[%clk 0:01:54.1]} 23...
Qd7 {[%clk 0:01:11.9]} 24. f4 {[%clk 0:01:46.1]} 24... exf4 {[%clk 0:01:03.2]}
25. Rxf4 {[%clk 0:01:47]} 25... Ne5 {[%clk 0:01:01.8]} 26. Rg3 {[%clk
0:01:41.1]} 26... Rxf4 {[%clk 0:00:55.3]} 27. Nxf4 {[%clk 0:01:40.6]} 27... Rf8
{[%clk 0:00:55.9]} 28. Qe4 {[%clk 0:01:38.4]} 28... Kh8 {[%clk 0:00:38.6]} 29.
g5 {[%clk 0:01:29.5]} 29... Qf7 {[%clk 0:00:31.6]} 30. Ne2 {[%clk 0:00:04.8]}
30... Qf1+ {[%clk 0:00:20.9]} 31. Kh2 {[%clk 0:00:04.5]} 31... Rf2+ {[%clk
0:00:11.2]} 32. Rg2 {[%clk 0:00:03.5]} 32... g6 {[%clk 0:00:04.6]} 33. Rxf2
{[%clk 0:00:01.9]} 33... Qxf2+ {[%clk 0:00:04.7]} 34. Qg2 {[%clk 0:00:01.7]}
34... Qxh4+ {[%clk 0:00:04.8]} 35. Qh3 {[%clk 0:00:01.2]} 35... Qxg5 {[%clk
0:00:04.4]} 0-1

[Event "*** SCC Grand Prix: Titled Tuesday Blitz"]
[Site "Chess.com"]
[Date "2020.07.14"]
[Round "4"]
[White "sotochess"]
[Black "BikingBrian"]
[Result "1-0"]
[WhiteElo "2431"]
[BlackElo "2200"]
[TimeControl "180+1"]
[EndTime "10:39:36 PDT"]
[Termination "sotochess won on time"]

1. e4 {[%clk 0:03:00]} 1... c5 {[%clk 0:02:59.7]} 2. Nf3 {[%clk 0:02:58.3]} 2...
g6 {[%clk 0:02:59.9]} 3. d4 {[%clk 0:02:55.4]} 3... cxd4 {[%clk 0:03:00.8]} 4.
Qxd4 {[%clk 0:02:55.2]} 4... Nf6 {[%clk 0:03:00.5]} 5. e5 {[%clk 0:02:55.3]}
5... Nc6 {[%clk 0:03:00.5]} 6. Qa4 {[%clk 0:02:55.6]} 6... Nd5 {[%clk
0:03:00.8]} 7. Qe4 {[%clk 0:02:55.1]} 7... Nb6 {[%clk 0:03:01]} 8. Nc3 {[%clk
0:02:54.8]} 8... d5 {[%clk 0:03:01.4]} 9. exd6 {[%clk 0:02:54.6]} 9... Bf5
{[%clk 0:03:01.7]} 10. dxe7 {[%clk 0:02:39.7]} 10... Bxe7 {[%clk 0:03:02.6]} 11.
Qe2 {[%clk 0:02:38.3]} 11... O-O {[%clk 0:02:50.9]} 12. Be3 {[%clk 0:02:36.7]}
12... Nb4 {[%clk 0:02:44.3]} 13. Rc1 {[%clk 0:02:35.9]} 13... Re8 {[%clk
0:01:58.4]} 14. Qd2 {[%clk 0:02:24.4]} 14... Qc8 {[%clk 0:01:40.5]} 15. a3
{[%clk 0:02:16]} 15... Rd8 {[%clk 0:01:11.3]} 16. Qe2 {[%clk 0:00:47.9]} 16...
Nxc2+ {[%clk 0:01:09.4]} 17. Rxc2 {[%clk 0:00:43.9]} 17... Bd3 {[%clk
0:01:09.2]} 18. Qxd3 {[%clk 0:00:42.6]} 18... Rxd3 {[%clk 0:01:08.5]} 19. Bxd3
{[%clk 0:00:43.2]} 19... Qd8 {[%clk 0:00:49.2]} 20. Ke2 {[%clk 0:00:41.5]} 20...
Nd5 {[%clk 0:00:43.3]} 21. Nxd5 {[%clk 0:00:36.4]} 21... Qxd5 {[%clk 0:00:41.9]}
22. Rd1 {[%clk 0:00:35.9]} 22... Qb3 {[%clk 0:00:40.6]} 23. Rdd2 {[%clk
0:00:33.7]} 23... Re8 {[%clk 0:00:39.9]} 24. Nd4 {[%clk 0:00:31.1]} 24... Qd5
{[%clk 0:00:35.4]} 25. Kf1 {[%clk 0:00:29.9]} 25... Bg5 {[%clk 0:00:22.8]} 26.
Bc4 {[%clk 0:00:28.2]} 26... Qd8 {[%clk 0:00:18.1]} 27. Ne6 {[%clk 0:00:26.7]}
27... Qf6 {[%clk 0:00:16.6]} 28. Nxg5 {[%clk 0:00:26.5]} 28... Rxe3 {[%clk
0:00:13.2]} 29. Nxf7 {[%clk 0:00:24.8]} 29... Kg7 {[%clk 0:00:09.3]} 30. Nd8
{[%clk 0:00:21.7]} 30... Re7 {[%clk 0:00:08.6]} 31. Ne6+ {[%clk 0:00:14.9]}
31... Kh6 {[%clk 0:00:08.3]} 32. Nd4 {[%clk 0:00:14]} 32... g5 {[%clk
0:00:05.6]} 33. h3 {[%clk 0:00:13.5]} 33... Kg7 {[%clk 0:00:04.6]} 34. g4 {[%clk
0:00:13]} 34... Kh8 {[%clk 0:00:04.3]} 35. Nf5 {[%clk 0:00:13.2]} 35... Rc7
{[%clk 0:00:03]} 36. Re2 {[%clk 0:00:12.3]} 36... h5 {[%clk 0:00:01.3]} 37. Re8+
{[%clk 0:00:11.9]} 37... Kh7 {[%clk 0:00:01.7]} 38. Bg8+ {[%clk 0:00:12.1]}
38... Kg6 {[%clk 0:00:01.1]} 39. Rxc7 {[%clk 0:00:10.9]} 1-0

[Event "*** SCC Grand Prix: Titled Tuesday Blitz"]
[Site "Chess.com"]
[Date "2020.07.14"]
[Round "4"]
[White "RodinMihail"]
[Black "Chessdreamer2020"]
[Result "1-0"]
[WhiteElo "2458"]
[BlackElo "2590"]
[TimeControl "180+1"]
[EndTime "10:39:37 PDT"]
[Termination "RodinMihail won by checkmate"]

1. e4 {[%clk 0:03:00.9]} 1... d6 {[%clk 0:02:59.4]} 2. d4 {[%clk 0:03:00.5]}
2... Nf6 {[%clk 0:02:59.8]} 3. Nc3 {[%clk 0:03:00.7]} 3... c6 {[%clk 0:02:59.2]}
4. g3 {[%clk 0:02:58.6]} 4... e5 {[%clk 0:02:58.6]} 5. Nge2 {[%clk 0:02:57.9]}
5... b5 {[%clk 0:02:58]} 6. a3 {[%clk 0:02:56.8]} 6... a5 {[%clk 0:02:58.4]} 7.
Bg2 {[%clk 0:02:56.4]} 7... Ba6 {[%clk 0:02:58.9]} 8. Be3 {[%clk 0:02:51.8]}
8... b4 {[%clk 0:02:52.4]} 9. Nb1 {[%clk 0:02:34.7]} 9... exd4 {[%clk
0:02:47.2]} 10. Bxd4 {[%clk 0:02:32]} 10... Nbd7 {[%clk 0:02:43.5]} 11. O-O
{[%clk 0:02:31.3]} 11... Be7 {[%clk 0:02:42.7]} 12. h3 {[%clk 0:02:31]} 12...
O-O {[%clk 0:02:42.4]} 13. Re1 {[%clk 0:02:30.9]} 13... c5 {[%clk 0:02:40.2]}
14. Be3 {[%clk 0:02:30.6]} 14... Bb7 {[%clk 0:02:38.2]} 15. Nd2 {[%clk 0:02:29]}
15... Re8 {[%clk 0:02:38.4]} 16. g4 {[%clk 0:02:27.6]} 16... Bf8 {[%clk
0:02:36.6]} 17. Ng3 {[%clk 0:02:27.7]} 17... d5 {[%clk 0:02:28]} 18. g5 {[%clk
0:01:56]} 18... Nxe4 {[%clk 0:02:25]} 19. Ndxe4 {[%clk 0:01:56]} 19... dxe4
{[%clk 0:02:24.9]} 20. Bf4 {[%clk 0:01:54.7]} 20... Qb6 {[%clk 0:01:55.6]} 21.
Nxe4 {[%clk 0:01:53.3]} 21... Rad8 {[%clk 0:01:55.1]} 22. Qg4 {[%clk 0:01:49.1]}
22... c4 {[%clk 0:01:15.1]} 23. Rad1 {[%clk 0:01:42.1]} 23... Nc5 {[%clk
0:01:08.1]} 24. Rxd8 {[%clk 0:01:26.3]} 24... Qxd8 {[%clk 0:01:01]} 25. f3
{[%clk 0:01:02.3]} 25... Bxe4 {[%clk 0:00:53.4]} 26. fxe4 {[%clk 0:01:01.4]}
26... Ne6 {[%clk 0:00:52.9]} 27. Be3 {[%clk 0:00:57.2]} 27... bxa3 {[%clk
0:00:52.3]} 28. bxa3 {[%clk 0:00:56.9]} 28... Bxa3 {[%clk 0:00:52.3]} 29. h4
{[%clk 0:00:55.7]} 29... Qc7 {[%clk 0:00:49.2]} 30. h5 {[%clk 0:00:52.8]} 30...
Bc5 {[%clk 0:00:49.1]} 31. g6 {[%clk 0:00:50.9]} 31... Bxe3+ {[%clk 0:00:48.9]}
32. Rxe3 {[%clk 0:00:50.9]} 32... fxg6 {[%clk 0:00:43.6]} 33. hxg6 {[%clk
0:00:50.6]} 33... Qc5 {[%clk 0:00:37]} 34. gxh7+ {[%clk 0:00:44.7]} 34... Kh8
{[%clk 0:00:37.1]} 35. Qg3 {[%clk 0:00:42]} 35... Nd4 {[%clk 0:00:27.1]} 36. Kh1
{[%clk 0:00:33]} 36... Qh5+ {[%clk 0:00:26]} 37. Bh3 {[%clk 0:00:22.6]} 37...
Qd1+ {[%clk 0:00:23.5]} 38. Re1 {[%clk 0:00:20]} 38... Qxc2 {[%clk 0:00:23.5]}
39. e5 {[%clk 0:00:19.7]} 39... c3 {[%clk 0:00:21.5]} 40. e6 {[%clk 0:00:19.7]}
40... Qd2 {[%clk 0:00:21.2]} 41. Rf1 {[%clk 0:00:17.4]} 41... c2 {[%clk
0:00:20.2]} 42. Qg6 {[%clk 0:00:17.5]} 42... Rb8 {[%clk 0:00:13.1]} 43. e7
{[%clk 0:00:17.7]} 43... Qe3 {[%clk 0:00:12.4]} 44. Rf8+ {[%clk 0:00:16.9]}
44... Rxf8 {[%clk 0:00:11.7]} 45. exf8=Q# {[%clk 0:00:17.8]} 1-0

[Event "*** SCC Grand Prix: Titled Tuesday Blitz"]
[Site "Chess.com"]
[Date "2020.07.14"]
[Round "4"]
[White "The_Machine04"]
[Black "earling8018"]
[Result "1-0"]
[WhiteElo "2289"]
[BlackElo "2048"]
[TimeControl "180+1"]
[EndTime "10:39:38 PDT"]
[Termination "The_Machine04 won on time"]

1. d4 {[%clk 0:03:00.9]} 1... d5 {[%clk 0:02:59.1]} 2. Bf4 {[%clk 0:03:00.5]}
2... e6 {[%clk 0:02:58]} 3. e3 {[%clk 0:03:00.2]} 3... Bd6 {[%clk 0:02:48.9]} 4.
Bg3 {[%clk 0:02:58.7]} 4... Nf6 {[%clk 0:02:45.3]} 5. Nd2 {[%clk 0:02:48.9]}
5... Bxg3 {[%clk 0:02:42.1]} 6. hxg3 {[%clk 0:02:48.8]} 6... Qd6 {[%clk
0:02:42.4]} 7. c3 {[%clk 0:02:42.4]} 7... Nbd7 {[%clk 0:02:38.5]} 8. f4 {[%clk
0:02:42.1]} 8... Ne4 {[%clk 0:02:18.1]} 9. Rh3 {[%clk 0:02:21.4]} 9... f5 {[%clk
0:02:03.2]} 10. Ngf3 {[%clk 0:02:15.4]} 10... Ndf6 {[%clk 0:02:02.9]} 11. Ne5
{[%clk 0:02:12.8]} 11... Bd7 {[%clk 0:01:55.8]} 12. Nxe4 {[%clk 0:02:01.6]}
12... dxe4 {[%clk 0:01:31.8]} 13. Be2 {[%clk 0:01:45.1]} 13... Rf8 {[%clk
0:01:25]} 14. g4 {[%clk 0:01:38.7]} 14... h6 {[%clk 0:00:38.8]} 15. gxf5 {[%clk
0:01:28.5]} 15... exf5 {[%clk 0:00:38.5]} 16. Bh5+ {[%clk 0:01:28.2]} 16... Kd8
{[%clk 0:00:36.4]} 17. Nf7+ {[%clk 0:01:20.2]} 17... Rxf7 {[%clk 0:00:36.6]} 18.
Bxf7 {[%clk 0:01:21.1]} 18... c6 {[%clk 0:00:17.4]} 19. Bc4 {[%clk 0:01:17.2]}
19... Kc7 {[%clk 0:00:17.2]} 20. Qb3 {[%clk 0:01:07.4]} 20... b5 {[%clk
0:00:16.3]} 21. Be2 {[%clk 0:01:06.2]} 21... Be6 {[%clk 0:00:09.3]} 22. Qc2
{[%clk 0:01:05.3]} 22... Nd5 {[%clk 0:00:09.2]} 23. O-O-O {[%clk 0:00:54.6]}
23... a5 {[%clk 0:00:09.1]} 24. Rg1 {[%clk 0:00:51.2]} 24... Nb6 {[%clk
0:00:08.8]} 25. g4 {[%clk 0:00:48.1]} 25... Bxa2 {[%clk 0:00:03.4]} 26. b3
{[%clk 0:00:35.5]} 26... Qa3+ {[%clk 0:00:03.8]} 27. Qb2 {[%clk 0:00:35.5]}
27... b4 {[%clk 0:00:04.4]} 28. Qxa3 {[%clk 0:00:32.8]} 28... bxa3 {[%clk
0:00:04.3]} 29. Kc2 {[%clk 0:00:29.6]} 29... a4 {[%clk 0:00:03.9]} 30. bxa4
{[%clk 0:00:28.8]} 30... Bd5 {[%clk 0:00:02.2]} 31. gxf5 {[%clk 0:00:24.9]}
31... Rxa4 {[%clk 0:00:01.4]} 32. Rxg7+ {[%clk 0:00:20.5]} 32... Nd7 {[%clk
0:00:01.6]} 33. Rh1 {[%clk 0:00:17.8]} 33... a2 {[%clk 0:00:01.7]} 34. Ra1
{[%clk 0:00:17.3]} 34... Kd6 {[%clk 0:00:02.1]} 35. Kb2 {[%clk 0:00:15.9]} 35...
Nf6 {[%clk 0:00:01.4]} 36. Rg6 {[%clk 0:00:12.9]} 1-0

[Event "*** SCC Grand Prix: Titled Tuesday Blitz"]
[Site "Chess.com"]
[Date "2020.07.14"]
[Round "4"]
[White "Ginger_GM"]
[Black "elohunter1999"]
[Result "0-1"]
[WhiteElo "2615"]
[BlackElo "2467"]
[TimeControl "180+1"]
[EndTime "10:39:40 PDT"]
[Termination "elohunter1999 won by checkmate"]

1. d4 {[%clk 0:03:00.9]} 1... Nf6 {[%clk 0:02:56.5]} 2. Nc3 {[%clk 0:03:00.3]}
2... d5 {[%clk 0:02:56]} 3. Bf4 {[%clk 0:02:59.7]} 3... c5 {[%clk 0:02:53.5]} 4.
e3 {[%clk 0:02:59.4]} 4... cxd4 {[%clk 0:02:53.8]} 5. exd4 {[%clk 0:02:58.8]}
5... a6 {[%clk 0:02:54.2]} 6. Nf3 {[%clk 0:02:58.2]} 6... Nc6 {[%clk 0:02:52.9]}
7. h3 {[%clk 0:02:58.1]} 7... e6 {[%clk 0:02:35]} 8. Bd3 {[%clk 0:02:49.2]} 8...
Bd6 {[%clk 0:02:34.2]} 9. Ne2 {[%clk 0:02:47.8]} 9... O-O {[%clk 0:02:33.5]} 10.
O-O {[%clk 0:02:46.2]} 10... Ne4 {[%clk 0:02:11.1]} 11. c3 {[%clk 0:02:40.1]}
11... f5 {[%clk 0:02:08.7]} 12. Bxd6 {[%clk 0:02:29.8]} 12... Qxd6 {[%clk
0:02:07.6]} 13. Qc1 {[%clk 0:02:23.9]} 13... Rf6 {[%clk 0:02:02.4]} 14. Qf4
{[%clk 0:02:21.7]} 14... Qe7 {[%clk 0:01:53.4]} 15. Ne5 {[%clk 0:01:54.6]} 15...
g5 {[%clk 0:01:47.6]} 16. Nxc6 {[%clk 0:01:50.4]} 16... bxc6 {[%clk 0:01:48.5]}
17. Qe5 {[%clk 0:01:50.3]} 17... Rg6 {[%clk 0:01:43.4]} 18. f3 {[%clk
0:01:49.1]} 18... Nd6 {[%clk 0:01:42.7]} 19. Rae1 {[%clk 0:01:39.6]} 19... Bd7
{[%clk 0:01:38.5]} 20. Nc1 {[%clk 0:01:36.2]} 20... Rf8 {[%clk 0:01:33.5]} 21.
Nb3 {[%clk 0:01:25.9]} 21... Bc8 {[%clk 0:01:21.9]} 22. Nc5 {[%clk 0:01:25.1]}
22... Rh6 {[%clk 0:01:20.3]} 23. b3 {[%clk 0:01:18.7]} 23... a5 {[%clk
0:01:12.9]} 24. Re2 {[%clk 0:01:17.7]} 24... Nf7 {[%clk 0:00:51.9]} 25. Qxf5
{[%clk 0:01:09.5]} 25... e5 {[%clk 0:00:45.4]} 26. Rxe5 {[%clk 0:00:53.6]} 26...
Qd6 {[%clk 0:00:23.9]} 27. Ne6 {[%clk 0:00:17.4]} 27... Bxe6 {[%clk 0:00:21.9]}
28. Rxe6 {[%clk 0:00:16.1]} 28... Qxe6 {[%clk 0:00:20.6]} 29. Kf2 {[%clk
0:00:13.9]} 29... Qxf5 {[%clk 0:00:19]} 30. Bxf5 {[%clk 0:00:13.9]} 30... Nd6
{[%clk 0:00:19.2]} 31. Bd3 {[%clk 0:00:14.1]} 31... Re6 {[%clk 0:00:18.1]} 32.
Rc1 {[%clk 0:00:12.5]} 32... Rfe8 {[%clk 0:00:17.4]} 33. Bf1 {[%clk 0:00:12.8]}
33... h5 {[%clk 0:00:16.4]} 34. c4 {[%clk 0:00:12.7]} 34... h4 {[%clk
0:00:16.3]} 35. cxd5 {[%clk 0:00:12.5]} 35... cxd5 {[%clk 0:00:16.3]} 36. Rc5
{[%clk 0:00:13.1]} 36... Nf5 {[%clk 0:00:15.9]} 37. Rxd5 {[%clk 0:00:12.6]}
37... Ng3 {[%clk 0:00:09.8]} 38. Rxg5+ {[%clk 0:00:12.5]} 38... Kf8 {[%clk
0:00:08.1]} 39. Bc4 {[%clk 0:00:09.6]} 39... Re1 {[%clk 0:00:07.2]} 40. Rg4
{[%clk 0:00:07.6]} 40... Nh1# {[%clk 0:00:02.9]} 0-1

[Event "*** SCC Grand Prix: Titled Tuesday Blitz"]
[Site "Chess.com"]
[Date "2020.07.14"]
[Round "4"]
[White "bgfbfbgfbgfgf"]
[Black "Rytenko_V"]
[Result "1-0"]
[WhiteElo "2666"]
[BlackElo "2469"]
[TimeControl "180+1"]
[EndTime "10:39:41 PDT"]
[Termination "bgfbfbgfbgfgf won on time"]

1. e4 {[%clk 0:03:00.9]} 1... d6 {[%clk 0:02:56.3]} 2. d4 {[%clk 0:03:00.7]}
2... Nf6 {[%clk 0:02:56.3]} 3. Nc3 {[%clk 0:03:01]} 3... g6 {[%clk 0:02:56.9]}
4. f4 {[%clk 0:03:01]} 4... Bg7 {[%clk 0:02:56.2]} 5. Nf3 {[%clk 0:03:01.4]}
5... c5 {[%clk 0:02:56.3]} 6. d5 {[%clk 0:02:53.6]} 6... O-O {[%clk 0:02:55.7]}
7. Bd3 {[%clk 0:02:51.4]} 7... b5 {[%clk 0:02:53.9]} 8. Nxb5 {[%clk 0:02:45.6]}
8... c4 {[%clk 0:02:19.9]} 9. Bxc4 {[%clk 0:02:40.5]} 9... Nxe4 {[%clk
0:02:20.4]} 10. Qe2 {[%clk 0:02:36.2]} 10... Qa5+ {[%clk 0:01:55.8]} 11. c3
{[%clk 0:02:27.2]} 11... a6 {[%clk 0:01:51.6]} 12. Nbd4 {[%clk 0:02:23.5]} 12...
f5 {[%clk 0:01:24.8]} 13. O-O {[%clk 0:02:17.1]} 13... Nd7 {[%clk 0:01:24.4]}
14. Nc6 {[%clk 0:02:16.7]} 14... Qc7 {[%clk 0:01:16.3]} 15. Be3 {[%clk
0:01:50.5]} 15... Ndf6 {[%clk 0:01:11.5]} 16. Bd4 {[%clk 0:01:47.8]} 16... Bb7
{[%clk 0:01:10.7]} 17. Bb3 {[%clk 0:01:39.3]} 17... Kh8 {[%clk 0:01:03.8]} 18.
Ng5 {[%clk 0:01:27.5]} 18... Nxg5 {[%clk 0:01:01.2]} 19. fxg5 {[%clk 0:01:27.4]}
19... Ne4 {[%clk 0:01:01.7]} 20. Bxg7+ {[%clk 0:01:27.9]} 20... Kxg7 {[%clk
0:01:02.4]} 21. Nd4 {[%clk 0:01:28.5]} 21... Qc5 {[%clk 0:00:54]} 22. Rad1
{[%clk 0:00:51.1]} 22... a5 {[%clk 0:00:44.4]} 23. Kh1 {[%clk 0:00:47.7]} 23...
Bc8 {[%clk 0:00:42.7]} 24. Bc2 {[%clk 0:00:45]} 24... Ba6 {[%clk 0:00:31.4]} 25.
Ne6+ {[%clk 0:00:34]} 25... Kh8 {[%clk 0:00:31]} 26. Bd3 {[%clk 0:00:28.7]}
26... Bxd3 {[%clk 0:00:22.4]} 27. Rxd3 {[%clk 0:00:26.5]} 27... Qc4 {[%clk
0:00:22.5]} 28. Nxf8 {[%clk 0:00:24.2]} 28... Rxf8 {[%clk 0:00:23.4]} 29. b3
{[%clk 0:00:24.6]} 29... Qa6 {[%clk 0:00:14.4]} 30. c4 {[%clk 0:00:22.1]} 30...
a4 {[%clk 0:00:14.3]} 31. Rdf3 {[%clk 0:00:20.2]} 31... Rb8 {[%clk 0:00:06.9]}
32. g4 {[%clk 0:00:19.1]} 32... Nxg5 {[%clk 0:00:04]} 33. Re3 {[%clk 0:00:18.8]}
33... Ne4 {[%clk 0:00:03.9]} 34. gxf5 {[%clk 0:00:18.3]} 34... Nf6 {[%clk
0:00:04]} 35. fxg6 {[%clk 0:00:16.8]} 35... hxg6 {[%clk 0:00:03.8]} 36. Rxe7
{[%clk 0:00:16.4]} 36... Rf8 {[%clk 0:00:03.2]} 37. Qe6 {[%clk 0:00:13.2]} 37...
Ng8 {[%clk 0:00:02.4]} 38. Qh3+ {[%clk 0:00:10.9]} 1-0

[Event "*** SCC Grand Prix: Titled Tuesday Blitz"]
[Site "Chess.com"]
[Date "2020.07.14"]
[Round "4"]
[White "mohssenbinaddi"]
[Black "sasko1234"]
[Result "0-1"]
[WhiteElo "2160"]
[BlackElo "2399"]
[TimeControl "180+1"]
[EndTime "10:39:41 PDT"]
[Termination "sasko1234 won on time"]

1. Nf3 {[%clk 0:03:00.9]} 1... Nf6 {[%clk 0:02:59.4]} 2. g3 {[%clk 0:03:01.1]}
2... d6 {[%clk 0:02:59.2]} 3. Bg2 {[%clk 0:03:01.6]} 3... c6 {[%clk 0:02:59.7]}
4. O-O {[%clk 0:03:02.2]} 4... Bg4 {[%clk 0:02:59.7]} 5. c4 {[%clk 0:03:03.1]}
5... Nbd7 {[%clk 0:02:59.4]} 6. h3 {[%clk 0:03:02.9]} 6... Bh5 {[%clk 0:02:59]}
7. Nc3 {[%clk 0:03:01.6]} 7... e5 {[%clk 0:02:58.6]} 8. d4 {[%clk 0:02:50]} 8...
Be7 {[%clk 0:02:57.9]} 9. g4 {[%clk 0:02:41.9]} 9... Bg6 {[%clk 0:02:57.3]} 10.
Nh4 {[%clk 0:02:42.2]} 10... O-O {[%clk 0:02:57.2]} 11. Nxg6 {[%clk 0:02:42]}
11... hxg6 {[%clk 0:02:57.4]} 12. b3 {[%clk 0:02:31.3]} 12... Re8 {[%clk
0:02:55.1]} 13. Bb2 {[%clk 0:02:29.6]} 13... Qc7 {[%clk 0:02:51.3]} 14. e3
{[%clk 0:02:27.6]} 14... Bf8 {[%clk 0:02:46.7]} 15. Rc1 {[%clk 0:02:27.2]} 15...
a5 {[%clk 0:02:36.4]} 16. g5 {[%clk 0:02:06.4]} 16... Nh7 {[%clk 0:02:31.9]} 17.
h4 {[%clk 0:02:05.5]} 17... Be7 {[%clk 0:02:21.1]} 18. Ne4 {[%clk 0:01:51.9]}
18... f5 {[%clk 0:02:13]} 19. Ng3 {[%clk 0:01:31.6]} 19... Nhf8 {[%clk 0:02:02]}
20. Qd2 {[%clk 0:01:20.3]} 20... Ne6 {[%clk 0:01:40.6]} 21. Ne2 {[%clk
0:01:19.6]} 21... Bf8 {[%clk 0:01:31.4]} 22. Rfd1 {[%clk 0:01:19.2]} 22... e4
{[%clk 0:01:25.4]} 23. d5 {[%clk 0:01:16.7]} 23... Nec5 {[%clk 0:01:25.2]} 24.
Nf4 {[%clk 0:01:02.2]} 24... Kh7 {[%clk 0:00:59]} 25. Qe2 {[%clk 0:00:53.5]}
25... Nd3 {[%clk 0:00:43.7]} 26. h5 {[%clk 0:00:31.5]} 26... Nxf4 {[%clk
0:00:42.3]} 27. exf4 {[%clk 0:00:30.7]} 27... Nc5 {[%clk 0:00:36]} 28. hxg6+
{[%clk 0:00:29.6]} 28... Kxg6 {[%clk 0:00:36]} 29. Bh3 {[%clk 0:00:19.5]} 29...
Qf7 {[%clk 0:00:35.9]} 30. Qe3 {[%clk 0:00:15]} 30... Nd3 {[%clk 0:00:31.1]} 31.
Rc2 {[%clk 0:00:11.4]} 31... Kh7 {[%clk 0:00:29.7]} 32. Qg3 {[%clk 0:00:08.8]}
32... Qg6 {[%clk 0:00:27.8]} 33. Bf1 {[%clk 0:00:09.5]} 33... Kg8 {[%clk
0:00:24.5]} 34. Bxd3 {[%clk 0:00:08.9]} 34... exd3 {[%clk 0:00:23.9]} 35. Rxd3
{[%clk 0:00:09.4]} 35... Re1+ {[%clk 0:00:19.1]} 36. Kg2 {[%clk 0:00:09.8]}
36... Rae8 {[%clk 0:00:17.4]} 37. Re3 {[%clk 0:00:09]} 37... R8xe3 {[%clk
0:00:16.2]} 38. fxe3 {[%clk 0:00:09.4]} 38... Qh5 {[%clk 0:00:16.7]} 39. Qh3
{[%clk 0:00:04.7]} 39... Rg1+ {[%clk 0:00:15.9]} 0-1